[Event "*** Titled Tuesday Blitz"]
[Site "Chess.com"]
[Date "2021.03.09"]
[Round "2"]
[White "Papa12341234"]
[Black "Sagar_Raina"]
[Result "1-0"]
[WhiteElo "2608"]
[BlackElo "2264"]
[TimeControl "180+1"]
[EndTime "10:20:04 PST"]
[Termination "Papa12341234 won on time"]

1. d4 {[%clk 0:03:00.2]} 1... Nf6 {[%clk 0:02:59.2]} 2. Nc3 {[%clk 0:02:59.6]}
2... d5 {[%clk 0:02:57.6]} 3. Bf4 {[%clk 0:02:59.8]} 3... g6 {[%clk 0:02:43.3]}
4. e3 {[%clk 0:02:59.5]} 4... Bg7 {[%clk 0:02:40.8]} 5. Nf3 {[%clk 0:02:59.5]}
5... O-O {[%clk 0:02:40.4]} 6. Be2 {[%clk 0:02:57]} 6... c5 {[%clk 0:02:36.1]}
7. h4 {[%clk 0:02:50.9]} 7... cxd4 {[%clk 0:02:22.1]} 8. exd4 {[%clk 0:02:46.8]}
8... Qb6 {[%clk 0:02:22]} 9. Qd2 {[%clk 0:02:42.3]} 9... Bg4 {[%clk 0:02:11.9]}
10. O-O {[%clk 0:02:23]} 10... Nc6 {[%clk 0:02:07.6]} 11. Be5 {[%clk 0:01:58.1]}
11... e6 {[%clk 0:01:52.2]} 12. Na4 {[%clk 0:01:53.4]} 12... Qa5 {[%clk
0:01:28.3]} 13. Qxa5 {[%clk 0:01:51.2]} 13... Nxa5 {[%clk 0:01:28]} 14. c3
{[%clk 0:01:50]} 14... Rfc8 {[%clk 0:01:24.9]} 15. Rfc1 {[%clk 0:01:47.8]} 15...
Nc4 {[%clk 0:01:17.9]} 16. Bxc4 {[%clk 0:01:46.2]} 16... Rxc4 {[%clk 0:01:17.3]}
17. b3 {[%clk 0:01:46.8]} 17... Rc6 {[%clk 0:01:12.4]} 18. Ne1 {[%clk
0:01:39.8]} 18... Be2 {[%clk 0:00:57.9]} 19. Nc2 {[%clk 0:01:33.3]} 19... Bb5
{[%clk 0:00:51.3]} 20. Nb4 {[%clk 0:01:33.1]} 20... Rcc8 {[%clk 0:00:50.5]} 21.
Nb2 {[%clk 0:01:29.2]} 21... a5 {[%clk 0:00:44.9]} 22. N4d3 {[%clk 0:01:29.2]}
22... a4 {[%clk 0:00:42.6]} 23. c4 {[%clk 0:01:26]} 23... dxc4 {[%clk
0:00:17.1]} 24. bxc4 {[%clk 0:01:26.9]} 24... Be8 {[%clk 0:00:16.8]} 25. Nd1
{[%clk 0:01:24]} 25... Ne4 {[%clk 0:00:11.8]} 26. Bxg7 {[%clk 0:01:24.9]} 26...
Kxg7 {[%clk 0:00:11.9]} 27. f3 {[%clk 0:01:25.3]} 27... Nd6 {[%clk 0:00:12.2]}
28. Ne3 {[%clk 0:01:25.7]} 28... Rc7 {[%clk 0:00:10]} 29. Rab1 {[%clk
0:01:26.2]} 29... Rac8 {[%clk 0:00:09.9]} 30. c5 {[%clk 0:01:26.4]} 30... Nf5
{[%clk 0:00:06.9]} 31. Nxf5+ {[%clk 0:01:25.8]} 31... gxf5 {[%clk 0:00:07.8]}
32. Nf4 {[%clk 0:01:24.1]} 32... Rd8 {[%clk 0:00:07.5]} 33. Rd1 {[%clk
0:01:24.1]} 33... Bc6 {[%clk 0:00:06.4]} 34. Kf2 {[%clk 0:01:22.3]} 34... Bd5
{[%clk 0:00:06.6]} 35. a3 {[%clk 0:01:22]} 35... Bb3 {[%clk 0:00:06.4]} 36. Rd2
{[%clk 0:01:22.3]} 36... Rxc5 {[%clk 0:00:06.5]} 37. Nh5+ {[%clk 0:01:17.5]}
37... Kg6 {[%clk 0:00:04.9]} 38. Nf4+ {[%clk 0:01:18.1]} 38... Kf6 {[%clk
0:00:05.3]} 39. dxc5 {[%clk 0:01:16.7]} 39... Rxd2+ {[%clk 0:00:04.9]} 40. Ke3
{[%clk 0:01:17.6]} 40... Rd7 {[%clk 0:00:04.2]} 41. Nh5+ {[%clk 0:01:18.2]}
41... Kg6 {[%clk 0:00:04.1]} 42. Nf4+ {[%clk 0:01:18.6]} 42... Kf6 {[%clk
0:00:04.6]} 43. g4 {[%clk 0:01:18.5]} 43... fxg4 {[%clk 0:00:04.4]} 44. fxg4
{[%clk 0:01:19.4]} 44... Ke7 {[%clk 0:00:04.9]} 45. Rc1 {[%clk 0:01:18.6]} 45...
Rc7 {[%clk 0:00:05.3]} 46. g5 {[%clk 0:01:16.5]} 46... b6 {[%clk 0:00:05.5]} 47.
c6 {[%clk 0:01:16.9]} 47... Kd6 {[%clk 0:00:05.7]} 48. Nd3 {[%clk 0:01:10.4]}
48... Rxc6 {[%clk 0:00:05.4]} 49. Rf1 {[%clk 0:01:11]} 49... Ke7 {[%clk
0:00:05.2]} 50. Ne5 {[%clk 0:01:04]} 50... Rc3+ {[%clk 0:00:05.2]} 51. Kd4
{[%clk 0:01:04.5]} 51... Rh3 {[%clk 0:00:03.7]} 52. Rxf7+ {[%clk 0:01:05]} 52...
Ke8 {[%clk 0:00:03.8]} 53. Rxh7 {[%clk 0:01:05.6]} 53... b5 {[%clk 0:00:02.5]}
54. g6 {[%clk 0:01:04.4]} 54... b4 {[%clk 0:00:02.4]} 55. Rh8+ {[%clk
0:00:59.5]} 55... Ke7 {[%clk 0:00:02.1]} 56. g7 {[%clk 0:01:00.4]} 56... Rg3
{[%clk 0:00:02.4]} 57. g8=Q {[%clk 0:00:59.9]} 57... Rxg8 {[%clk 0:00:02.1]} 58.
Rxg8 {[%clk 0:01:00.8]} 58... bxa3 {[%clk 0:00:02.7]} 59. Rg1 {[%clk 0:01:00.2]}
59... a2 {[%clk 0:00:03.1]} 60. h5 {[%clk 0:01:00.2]} 60... Kf6 {[%clk
0:00:02.8]} 61. Nd7+ {[%clk 0:00:56.6]} 61... Ke7 {[%clk 0:00:02.5]} 62. Nc5
{[%clk 0:00:53.3]} 62... Bc2 {[%clk 0:00:02.6]} 63. Ra1 {[%clk 0:00:52.2]} 63...
Bb1 {[%clk 0:00:02.7]} 64. Ke5 {[%clk 0:00:50.8]} 64... Kf7 {[%clk 0:00:02.6]}
65. Nxe6 {[%clk 0:00:50.6]} 65... Kg8 {[%clk 0:00:02.4]} 66. Kf6 {[%clk
0:00:50]} 66... Kh7 {[%clk 0:00:02.4]} 67. Kg5 {[%clk 0:00:50.6]} 67... Kh8
{[%clk 0:00:02.1]} 68. h6 {[%clk 0:00:50.1]} 68... Kh7 {[%clk 0:00:02.1]} 69.
Nc5 {[%clk 0:00:50.4]} 69... a3 {[%clk 0:00:01.3]} 70. Nb3 {[%clk 0:00:50.3]}
70... Kh8 {[%clk 0:00:02.2]} 71. Nd2 {[%clk 0:00:50.7]} 71... Bc2 {[%clk
0:00:02.2]} 72. Rxa2 {[%clk 0:00:50.9]} 1-0

[Event "*** Titled Tuesday Blitz"]
[Site "Chess.com"]
[Date "2021.03.09"]
[Round "2"]
[White "PetrolulSah"]
[Black "shaheus"]
[Result "1-0"]
[WhiteElo "2187"]
[BlackElo "2403"]
[TimeControl "180+1"]
[EndTime "10:20:04 PST"]
[Termination "PetrolulSah won on time"]

1. d4 {[%clk 0:03:00.9]} 1... Nf6 {[%clk 0:02:59.6]} 2. c4 {[%clk 0:03:00.4]}
2... g6 {[%clk 0:03:00.2]} 3. Nc3 {[%clk 0:02:58.6]} 3... Bg7 {[%clk 0:03:00.8]}
4. e4 {[%clk 0:02:58]} 4... d6 {[%clk 0:03:01.3]} 5. Be2 {[%clk 0:02:58.4]} 5...
O-O {[%clk 0:03:01.6]} 6. Be3 {[%clk 0:02:59]} 6... e5 {[%clk 0:03:01.1]} 7. d5
{[%clk 0:02:55.6]} 7... Ne8 {[%clk 0:02:59.7]} 8. Qd2 {[%clk 0:02:53.8]} 8... f5
{[%clk 0:02:59.4]} 9. f3 {[%clk 0:02:52.3]} 9... Nd7 {[%clk 0:02:55.6]} 10. g4
{[%clk 0:02:52.1]} 10... c5 {[%clk 0:02:47.1]} 11. h4 {[%clk 0:02:48.1]} 11...
f4 {[%clk 0:02:44]} 12. Bf2 {[%clk 0:02:47.7]} 12... h6 {[%clk 0:02:44.1]} 13.
Nh3 {[%clk 0:02:42.7]} 13... Rf7 {[%clk 0:02:42.5]} 14. O-O {[%clk 0:02:34]}
14... Bf6 {[%clk 0:02:38.4]} 15. Qe1 {[%clk 0:02:28.9]} 15... a6 {[%clk
0:02:38.4]} 16. a3 {[%clk 0:02:28.3]} 16... Rb8 {[%clk 0:02:34.4]} 17. b4 {[%clk
0:02:27.2]} 17... b6 {[%clk 0:02:34.5]} 18. Rb1 {[%clk 0:02:25.5]} 18... Ra8
{[%clk 0:02:20.9]} 19. Kh2 {[%clk 0:02:24.1]} 19... Nf8 {[%clk 0:02:18.6]} 20.
Rg1 {[%clk 0:02:23]} 20... Kh7 {[%clk 0:02:18]} 21. g5 {[%clk 0:02:19.9]} 21...
Qd7 {[%clk 0:01:55.9]} 22. Bf1 {[%clk 0:02:09.9]} 22... hxg5 {[%clk 0:01:55.9]}
23. Nxg5+ {[%clk 0:02:05.5]} 23... Bxg5 {[%clk 0:01:55.2]} 24. hxg5 {[%clk
0:02:03.5]} 24... Kg8 {[%clk 0:01:52.8]} 25. Rg4 {[%clk 0:01:57.7]} 25... Rh7+
{[%clk 0:01:50.4]} 26. Rh4 {[%clk 0:01:51.5]} 26... Ng7 {[%clk 0:01:46.8]} 27.
Bg2 {[%clk 0:01:41]} 27... Rxh4+ {[%clk 0:01:41.5]} 28. Bxh4 {[%clk 0:01:39.8]}
28... Nh5 {[%clk 0:01:39.7]} 29. Qf1 {[%clk 0:01:37.5]} 29... Nh7 {[%clk
0:01:34.9]} 30. Bh3 {[%clk 0:01:34.8]} 30... Qc7 {[%clk 0:01:25.9]} 31. Be6+
{[%clk 0:01:29.5]} 31... Kg7 {[%clk 0:01:24.2]} 32. Qh3 {[%clk 0:01:27]} 32...
Nf8 {[%clk 0:01:17.3]} 33. Bxc8 {[%clk 0:01:20.3]} 33... Rxc8 {[%clk 0:01:10.2]}
34. Bf2 {[%clk 0:01:18.3]} 34... Nh7 {[%clk 0:01:04.2]} 35. Qg2 {[%clk
0:01:11.1]} 35... Qe7 {[%clk 0:00:41.1]} 36. bxc5 {[%clk 0:01:03.8]} 36... bxc5
{[%clk 0:00:37.7]} 37. Qg4 {[%clk 0:00:47.1]} 37... Rh8 {[%clk 0:00:26.7]} 38.
Bh4 {[%clk 0:00:45.5]} 38... Ng3 {[%clk 0:00:22.4]} 39. Kg2 {[%clk 0:00:32.8]}
39... Nf8 {[%clk 0:00:15.9]} 40. Bxg3 {[%clk 0:00:30.6]} 40... fxg3 {[%clk
0:00:15]} 41. Kxg3 {[%clk 0:00:30.7]} 41... Rh5 {[%clk 0:00:14.4]} 42. Kf2
{[%clk 0:00:18.4]} 42... Rxg5 {[%clk 0:00:13.5]} 43. Qh3 {[%clk 0:00:18.2]}
43... Rh5 {[%clk 0:00:11.4]} 44. Qg2 {[%clk 0:00:13.8]} 44... Nh7 {[%clk
0:00:10.4]} 45. Rh1 {[%clk 0:00:12.4]} 45... Rxh1 {[%clk 0:00:08.8]} 46. Qxh1
{[%clk 0:00:12.5]} 46... Qg5 {[%clk 0:00:08.8]} 47. Qd1 {[%clk 0:00:10.3]} 47...
Nf6 {[%clk 0:00:07.1]} 48. Ne2 {[%clk 0:00:06.9]} 48... Qh4+ {[%clk 0:00:06.1]}
49. Ke3 {[%clk 0:00:06.4]} 49... Nh5 {[%clk 0:00:04.8]} 50. Qb1 {[%clk
0:00:05.7]} 50... Qg5+ {[%clk 0:00:03.4]} 51. Kd3 {[%clk 0:00:05.7]} 51... Nf4+
{[%clk 0:00:02.2]} 52. Nxf4 {[%clk 0:00:04.9]} 52... Qxf4 {[%clk 0:00:02.2]} 53.
Qb7+ {[%clk 0:00:04.9]} 53... Kh6 {[%clk 0:00:02.4]} 54. Ke2 {[%clk 0:00:05]}
54... Qh2+ {[%clk 0:00:02.1]} 55. Kf1 {[%clk 0:00:04.8]} 55... Qh1+ {[%clk
0:00:01.1]} 56. Kf2 {[%clk 0:00:05]} 1-0

[Event "*** Titled Tuesday Blitz"]
[Site "Chess.com"]
[Date "2021.03.09"]
[Round "2"]
[White "dozer80"]
[Black "BrandonJacobson"]
[Result "1/2-1/2"]
[WhiteElo "2582"]
[BlackElo "2927"]
[TimeControl "180+1"]
[EndTime "10:20:07 PST"]
[Termination "Game drawn by repetition"]

1. e4 {[%clk 0:03:00.9]} 1... c5 {[%clk 0:03:00.1]} 2. Nf3 {[%clk 0:02:59.6]}
2... Nc6 {[%clk 0:03:00.8]} 3. d4 {[%clk 0:02:57.2]} 3... cxd4 {[%clk
0:03:01.7]} 4. Nxd4 {[%clk 0:02:58]} 4... Nf6 {[%clk 0:03:02.4]} 5. Nc3 {[%clk
0:02:58.3]} 5... d6 {[%clk 0:03:03]} 6. Bg5 {[%clk 0:02:57.4]} 6... e6 {[%clk
0:03:03.3]} 7. Qd2 {[%clk 0:02:57.4]} 7... a6 {[%clk 0:03:03.9]} 8. O-O-O {[%clk
0:02:56.9]} 8... Bd7 {[%clk 0:03:04.6]} 9. f3 {[%clk 0:02:56.8]} 9... Nxd4
{[%clk 0:03:04.7]} 10. Qxd4 {[%clk 0:02:56.4]} 10... Bc6 {[%clk 0:03:05.2]} 11.
h4 {[%clk 0:02:55.4]} 11... h6 {[%clk 0:03:04.9]} 12. Be3 {[%clk 0:02:54.8]}
12... d5 {[%clk 0:03:05.4]} 13. e5 {[%clk 0:02:18.3]} 13... Nd7 {[%clk
0:03:05.1]} 14. f4 {[%clk 0:02:18.5]} 14... Bc5 {[%clk 0:03:02.7]} 15. Qd2
{[%clk 0:02:18]} 15... Qa5 {[%clk 0:02:59.2]} 16. Kb1 {[%clk 0:02:11.6]} 16...
Bxe3 {[%clk 0:02:54]} 17. Qxe3 {[%clk 0:02:11]} 17... Qc5 {[%clk 0:02:54.9]} 18.
Qd4 {[%clk 0:01:51.2]} 18... Qxd4 {[%clk 0:02:51.6]} 19. Rxd4 {[%clk 0:01:52.1]}
19... Ke7 {[%clk 0:02:52.3]} 20. g3 {[%clk 0:01:48.5]} 20... g5 {[%clk
0:02:51.3]} 21. Bd3 {[%clk 0:01:28.9]} 21... g4 {[%clk 0:02:43.8]} 22. a4 {[%clk
0:01:23.9]} 22... h5 {[%clk 0:02:38.3]} 23. b4 {[%clk 0:01:22.8]} 23... b6
{[%clk 0:02:32.4]} 24. Kb2 {[%clk 0:01:22.1]} 24... a5 {[%clk 0:02:31.3]} 25.
Re1 {[%clk 0:01:13.8]} 25... axb4 {[%clk 0:02:22.9]} 26. Rxb4 {[%clk 0:01:14.7]}
26... Rhb8 {[%clk 0:02:23.2]} 27. Ra1 {[%clk 0:00:54.8]} 27... Ra5 {[%clk
0:02:16.1]} 28. Kc1 {[%clk 0:00:54.1]} 28... Nc5 {[%clk 0:02:08.7]} 29. Kd2
{[%clk 0:00:52]} 29... Kd7 {[%clk 0:02:07.9]} 30. Rab1 {[%clk 0:00:42.4]} 30...
Kc7 {[%clk 0:02:04.2]} 31. Bb5 {[%clk 0:00:42.6]} 31... Bxb5 {[%clk 0:01:49.9]}
32. Nxb5+ {[%clk 0:00:42.7]} 32... Kd7 {[%clk 0:01:48.8]} 33. Nd6 {[%clk
0:00:36.8]} 33... f6 {[%clk 0:01:29.4]} 34. Rxb6 {[%clk 0:00:31.4]} 34... Rxb6
{[%clk 0:01:30.3]} 35. Rxb6 {[%clk 0:00:31.9]} 35... fxe5 {[%clk 0:01:31]} 36.
fxe5 {[%clk 0:00:31.6]} 36... Rxa4 {[%clk 0:01:31.7]} 37. Kc1 {[%clk 0:00:11.3]}
37... Ra3 {[%clk 0:01:25.2]} 38. Rb5 {[%clk 0:00:11.2]} 38... Kc6 {[%clk
0:01:20.5]} 39. Rb8 {[%clk 0:00:11.2]} 39... Rxg3 {[%clk 0:01:17.2]} 40. Rc8+
{[%clk 0:00:11.5]} 40... Kb6 {[%clk 0:01:17.9]} 41. Rb8+ {[%clk 0:00:11.7]}
41... Ka7 {[%clk 0:01:08.7]} 42. Rc8 {[%clk 0:00:11.9]} 42... Ne4 {[%clk
0:01:03.9]} 43. Nb5+ {[%clk 0:00:11]} 43... Kb7 {[%clk 0:01:02.1]} 44. Re8
{[%clk 0:00:10.4]} 44... Rg1+ {[%clk 0:00:38.7]} 45. Kb2 {[%clk 0:00:10.2]}
45... Nc5 {[%clk 0:00:39.4]} 46. Nd4 {[%clk 0:00:09.6]} 46... Re1 {[%clk
0:00:20.6]} 47. Nxe6 {[%clk 0:00:09]} 47... Nxe6 {[%clk 0:00:17.5]} 48. Rxe6
{[%clk 0:00:09.9]} 48... Kc7 {[%clk 0:00:16.2]} 49. Kc3 {[%clk 0:00:09.6]} 49...
Re4 {[%clk 0:00:16.5]} 50. Kd3 {[%clk 0:00:09.5]} 50... g3 {[%clk 0:00:12]} 51.
Rg6 {[%clk 0:00:09.6]} 51... Rxh4 {[%clk 0:00:12.1]} 52. Rxg3 {[%clk 0:00:09.8]}
52... Re4 {[%clk 0:00:12.8]} 53. Rg5 {[%clk 0:00:10]} 53... h4 {[%clk
0:00:13.4]} 54. Rh5 {[%clk 0:00:10.1]} 54... Kd7 {[%clk 0:00:14]} 55. Rh7+
{[%clk 0:00:05.2]} 55... Ke6 {[%clk 0:00:14.4]} 56. Rh5 {[%clk 0:00:05.5]} 56...
Rg4 {[%clk 0:00:13]} 57. c3 {[%clk 0:00:05]} 57... Rg3+ {[%clk 0:00:12.4]} 58.
Kd4 {[%clk 0:00:05.6]} 58... Rg4+ {[%clk 0:00:12.9]} 59. Kd3 {[%clk 0:00:06.2]}
59... Rf4 {[%clk 0:00:13.3]} 60. Ke3 {[%clk 0:00:05.3]} 60... Ra4 {[%clk
0:00:13.5]} 61. Kd3 {[%clk 0:00:06.1]} 61... Rc4 {[%clk 0:00:13.9]} 62. Kd2
{[%clk 0:00:04.4]} 62... Rg4 {[%clk 0:00:09.1]} 63. Kd3 {[%clk 0:00:04.8]}
1/2-1/2

[Event "*** Titled Tuesday Blitz"]
[Site "Chess.com"]
[Date "2021.03.09"]
[Round "2"]
[White "Alex-11211"]
[Black "olksuna"]
[Result "1-0"]
[WhiteElo "2410"]
[BlackElo "2668"]
[TimeControl "180+1"]
[EndTime "10:20:12 PST"]
[Termination "Alex-11211 won by checkmate"]

1. e4 {[%clk 0:03:00.9]} 1... c5 {[%clk 0:02:59.4]} 2. Nf3 {[%clk 0:03:01]} 2...
e6 {[%clk 0:02:59.9]} 3. Nc3 {[%clk 0:03:00.8]} 3... a6 {[%clk 0:02:59.5]} 4. g3
{[%clk 0:03:00.3]} 4... b5 {[%clk 0:02:58.8]} 5. d4 {[%clk 0:03:00.5]} 5... cxd4
{[%clk 0:02:56.6]} 6. Nxd4 {[%clk 0:03:01.4]} 6... Bb7 {[%clk 0:02:55.1]} 7. Bg2
{[%clk 0:03:01.9]} 7... b4 {[%clk 0:02:54.7]} 8. Na4 {[%clk 0:02:52.2]} 8... Nf6
{[%clk 0:02:54.4]} 9. O-O {[%clk 0:02:49.7]} 9... Nxe4 {[%clk 0:02:43.6]} 10.
Re1 {[%clk 0:02:15.5]} 10... d5 {[%clk 0:02:40.6]} 11. c4 {[%clk 0:02:09.8]}
11... Be7 {[%clk 0:02:26.6]} 12. cxd5 {[%clk 0:02:03.2]} 12... exd5 {[%clk
0:02:27.5]} 13. Nf5 {[%clk 0:02:00.4]} 13... O-O {[%clk 0:02:03.8]} 14. f3
{[%clk 0:01:57.4]} 14... Bc5+ {[%clk 0:01:59.4]} 15. Nxc5 {[%clk 0:01:38.5]}
15... Nxc5 {[%clk 0:02:00.3]} 16. Qd4 {[%clk 0:01:38.8]} 16... Qf6 {[%clk
0:01:49.2]} 17. Ne7+ {[%clk 0:01:20.9]} 17... Kh8 {[%clk 0:01:49]} 18. Qxc5
{[%clk 0:01:21]} 18... Nd7 {[%clk 0:01:34.8]} 19. Qxb4 {[%clk 0:01:15.5]} 19...
Rab8 {[%clk 0:01:09.2]} 20. Bf4 {[%clk 0:01:02.7]} 20... a5 {[%clk 0:01:09.2]}
21. Qd6 {[%clk 0:00:55.7]} 21... Rbd8 {[%clk 0:00:54.7]} 22. Qxf6 {[%clk
0:00:43.4]} 22... Nxf6 {[%clk 0:00:55.6]} 23. Nf5 {[%clk 0:00:44]} 23... d4
{[%clk 0:00:53.1]} 24. Rad1 {[%clk 0:00:37.8]} 24... d3 {[%clk 0:00:47.8]} 25.
Nd6 {[%clk 0:00:30.9]} 25... Ba6 {[%clk 0:00:44.4]} 26. Bf1 {[%clk 0:00:30.9]}
26... Nh5 {[%clk 0:00:40.6]} 27. Bxd3 {[%clk 0:00:22.7]} 27... Nxf4 {[%clk
0:00:24.3]} 28. Bxa6 {[%clk 0:00:22.3]} 28... Ne6 {[%clk 0:00:21.1]} 29. Rxe6
{[%clk 0:00:20.5]} 29... Ra8 {[%clk 0:00:16.6]} 30. Nxf7+ {[%clk 0:00:15.4]}
30... Rxf7 {[%clk 0:00:15.9]} 31. Red6 {[%clk 0:00:15.9]} 31... Rff8 {[%clk
0:00:15]} 32. Bb7 {[%clk 0:00:15]} 32... Rab8 {[%clk 0:00:14]} 33. Be4 {[%clk
0:00:15.5]} 33... g6 {[%clk 0:00:12.6]} 34. b3 {[%clk 0:00:15.1]} 34... Rf7
{[%clk 0:00:11]} 35. R1d4 {[%clk 0:00:14.6]} 35... Ra7 {[%clk 0:00:10.8]} 36.
Rd8+ {[%clk 0:00:14.5]} 36... Rxd8 {[%clk 0:00:10.2]} 37. Rxd8+ {[%clk
0:00:15.4]} 37... Kg7 {[%clk 0:00:11.1]} 38. Ra8 {[%clk 0:00:16]} 38... Rc7
{[%clk 0:00:10.3]} 39. Rxa5 {[%clk 0:00:16.1]} 39... Rc8 {[%clk 0:00:11.2]} 40.
Ra7+ {[%clk 0:00:15.4]} 40... Kf6 {[%clk 0:00:11.4]} 41. b4 {[%clk 0:00:15.9]}
41... g5 {[%clk 0:00:12.3]} 42. a3 {[%clk 0:00:15.8]} 42... Rc3 {[%clk
0:00:11.8]} 43. b5 {[%clk 0:00:15.4]} 43... Rb3 {[%clk 0:00:12.7]} 44. Ra6+
{[%clk 0:00:12.7]} 44... Ke5 {[%clk 0:00:12.8]} 45. a4 {[%clk 0:00:13.1]} 45...
g4 {[%clk 0:00:13.1]} 46. Bc6 {[%clk 0:00:11.5]} 46... gxf3 {[%clk 0:00:11.5]}
47. Ra8 {[%clk 0:00:12.4]} 47... Kd4 {[%clk 0:00:09.8]} 48. Kf2 {[%clk
0:00:12.5]} 48... h5 {[%clk 0:00:08.4]} 49. Rf8 {[%clk 0:00:11.6]} 49... Rb2+
{[%clk 0:00:08.6]} 50. Kxf3 {[%clk 0:00:11.6]} 50... Rxh2 {[%clk 0:00:09.5]} 51.
a5 {[%clk 0:00:11.4]} 51... h4 {[%clk 0:00:09.7]} 52. Rf4+ {[%clk 0:00:10.7]}
52... Kc5 {[%clk 0:00:08.7]} 53. Rxh4 {[%clk 0:00:11.6]} 53... Ra2 {[%clk
0:00:08.6]} 54. a6 {[%clk 0:00:11.4]} 54... Kb6 {[%clk 0:00:08.7]} 55. Rf4
{[%clk 0:00:11.3]} 55... Kc7 {[%clk 0:00:08.7]} 56. Kg4 {[%clk 0:00:12.2]} 56...
Re2 {[%clk 0:00:08.1]} 57. Rf7+ {[%clk 0:00:12.2]} 57... Kb6 {[%clk 0:00:06.7]}
58. a7 {[%clk 0:00:12.1]} 58... Rc2 {[%clk 0:00:05.1]} 59. a8=Q {[%clk 0:00:12]}
59... Rc4+ {[%clk 0:00:05.4]} 60. Rf4 {[%clk 0:00:08.8]} 60... Rc1 {[%clk
0:00:02.9]} 61. Qd8+ {[%clk 0:00:05.9]} 61... Kc5 {[%clk 0:00:03.8]} 62. Qd4#
{[%clk 0:00:06.3]} 1-0

[Event "*** Titled Tuesday Blitz"]
[Site "Chess.com"]
[Date "2021.03.09"]
[Round "2"]
[White "CM_rui"]
[Black "LenkaPtacnikova"]
[Result "0-1"]
[WhiteElo "2388"]
[BlackElo "2120"]
[TimeControl "180+1"]
[EndTime "10:20:12 PST"]
[Termination "LenkaPtacnikova won by checkmate"]

1. e4 {[%clk 0:03:00.9]} 1... c5 {[%clk 0:02:57.8]} 2. Nf3 {[%clk 0:03:01]} 2...
e6 {[%clk 0:02:56.9]} 3. c4 {[%clk 0:03:01.4]} 3... Nc6 {[%clk 0:02:53]} 4. d4
{[%clk 0:03:01]} 4... cxd4 {[%clk 0:02:52.5]} 5. Nxd4 {[%clk 0:03:01.9]} 5...
Qc7 {[%clk 0:02:47.4]} 6. Nc3 {[%clk 0:02:57]} 6... a6 {[%clk 0:02:46]} 7. Be3
{[%clk 0:02:56.7]} 7... Nf6 {[%clk 0:02:44]} 8. Be2 {[%clk 0:02:55.9]} 8... Bb4
{[%clk 0:02:43.2]} 9. f3 {[%clk 0:02:54.2]} 9... Bd6 {[%clk 0:02:27.3]} 10. a3
{[%clk 0:02:23.6]} 10... Bxh2 {[%clk 0:02:21.3]} 11. Qd2 {[%clk 0:01:59.5]}
11... Bg3+ {[%clk 0:02:20]} 12. Bf2 {[%clk 0:01:56.7]} 12... Bxf2+ {[%clk
0:02:19.9]} 13. Kxf2 {[%clk 0:01:57.6]} 13... Ne5 {[%clk 0:02:03.4]} 14. Rac1
{[%clk 0:01:43.9]} 14... b6 {[%clk 0:01:52.3]} 15. b4 {[%clk 0:01:31]} 15... Bb7
{[%clk 0:01:48.1]} 16. Qg5 {[%clk 0:01:26.6]} 16... Ng6 {[%clk 0:01:42.8]} 17.
g3 {[%clk 0:01:18.3]} 17... Qe5 {[%clk 0:01:28.3]} 18. Qe3 {[%clk 0:01:13.5]}
18... O-O {[%clk 0:01:13]} 19. Rh3 {[%clk 0:00:55.4]} 19... d5 {[%clk
0:00:47.4]} 20. f4 {[%clk 0:00:26.8]} 20... Nxe4+ {[%clk 0:00:46.1]} 21. Kg2
{[%clk 0:00:21.9]} 21... Qd6 {[%clk 0:00:31.7]} 22. Nxe4 {[%clk 0:00:21.3]}
22... dxe4 {[%clk 0:00:31.5]} 23. Rch1 {[%clk 0:00:20.8]} 23... h6 {[%clk
0:00:30.8]} 24. f5 {[%clk 0:00:18.8]} 24... exf5 {[%clk 0:00:30.6]} 25. Nxf5
{[%clk 0:00:18]} 25... Qe5 {[%clk 0:00:27.1]} 26. Rxh6 {[%clk 0:00:04.5]} 26...
Qxf5 {[%clk 0:00:24.4]} 27. R6h5 {[%clk 0:00:02]} 27... Qf6 {[%clk 0:00:20.7]}
28. g4 {[%clk 0:00:01.8]} 28... Qf4 {[%clk 0:00:18.4]} 29. Qh3 {[%clk
0:00:01.6]} 29... e3+ {[%clk 0:00:15.9]} 30. Bf3 {[%clk 0:00:01.9]} 30... Qxf3+
{[%clk 0:00:15.5]} 31. Qxf3 {[%clk 0:00:02.8]} 31... Bxf3+ {[%clk 0:00:14]} 32.
Kxf3 {[%clk 0:00:03.7]} 32... Rfe8 {[%clk 0:00:13.9]} 33. Ke2 {[%clk 0:00:04.3]}
33... Re6 {[%clk 0:00:13.7]} 34. Ke1 {[%clk 0:00:04.6]} 34... Rd8 {[%clk
0:00:13.5]} 35. g5 {[%clk 0:00:05.1]} 35... e2 {[%clk 0:00:13.1]} 36. Kf2 {[%clk
0:00:04.1]} 36... Rd1 {[%clk 0:00:12.5]} 37. Re1 {[%clk 0:00:04.3]} 37... Rxe1
{[%clk 0:00:11.3]} 38. Kxe1 {[%clk 0:00:05.2]} 38... Nf4 {[%clk 0:00:09.8]} 39.
Rh2 {[%clk 0:00:02.4]} 39... Nd3+ {[%clk 0:00:09.5]} 40. Kd2 {[%clk 0:00:03.1]}
40... e1=Q+ {[%clk 0:00:08.9]} 41. Kxd3 {[%clk 0:00:03.7]} 41... Qd1+ {[%clk
0:00:08.9]} 42. Kc3 {[%clk 0:00:03.3]} 42... Qc1+ {[%clk 0:00:09.5]} 43. Kb3
{[%clk 0:00:02.7]} 43... Qd1+ {[%clk 0:00:10.1]} 44. Rc2 {[%clk 0:00:02.2]}
44... Re3+ {[%clk 0:00:09.8]} 45. Kb2 {[%clk 0:00:02.8]} 45... Qd3 {[%clk
0:00:09.5]} 46. Rf2 {[%clk 0:00:01.9]} 46... Qb3+ {[%clk 0:00:10]} 47. Kc1
{[%clk 0:00:02.5]} 47... Qc3+ {[%clk 0:00:10.3]} 48. Kd1 {[%clk 0:00:02.8]}
48... Qd3+ {[%clk 0:00:10.4]} 49. Kc1 {[%clk 0:00:03.2]} 49... Qxa3+ {[%clk
0:00:09.9]} 50. Kd1 {[%clk 0:00:03.5]} 50... Qd3+ {[%clk 0:00:10]} 51. Rd2
{[%clk 0:00:04]} 51... Qc3 {[%clk 0:00:08.1]} 52. Rd8+ {[%clk 0:00:03.8]} 52...
Kh7 {[%clk 0:00:08.2]} 53. Rd2 {[%clk 0:00:04.7]} 53... Kg6 {[%clk 0:00:08.5]}
54. Rd6+ {[%clk 0:00:04.5]} 54... f6 {[%clk 0:00:06.8]} 55. Rd2 {[%clk
0:00:05.4]} 55... Rd3 {[%clk 0:00:06.1]} 56. Rxd3 {[%clk 0:00:05.4]} 56... Qxd3+
{[%clk 0:00:06.6]} 57. Ke1 {[%clk 0:00:06.3]} 57... Qxc4 {[%clk 0:00:07]} 58. b5
{[%clk 0:00:06.9]} 58... Qxb5 {[%clk 0:00:07.1]} 59. Kf2 {[%clk 0:00:07.6]}
59... fxg5 {[%clk 0:00:07]} 60. Ke3 {[%clk 0:00:08.5]} 60... g4 {[%clk
0:00:07.4]} 61. Kf2 {[%clk 0:00:09.4]} 61... Kg5 {[%clk 0:00:06.6]} 62. Kg3
{[%clk 0:00:10.3]} 62... Kf5 {[%clk 0:00:06.5]} 63. Kg2 {[%clk 0:00:10.7]} 63...
Kf4 {[%clk 0:00:07.1]} 64. Kf2 {[%clk 0:00:11]} 64... g3+ {[%clk 0:00:07.4]} 65.
Ke1 {[%clk 0:00:11.9]} 65... Kf3 {[%clk 0:00:07.4]} 66. Kd2 {[%clk 0:00:12.8]}
66... Qb3 {[%clk 0:00:07.2]} 67. Kc1 {[%clk 0:00:12.9]} 67... Qa2 {[%clk
0:00:07.1]} 68. Kd1 {[%clk 0:00:13]} 68... Ke3 {[%clk 0:00:07]} 69. Ke1 {[%clk
0:00:13.9]} 69... Qe2# {[%clk 0:00:06.3]} 0-1